Cogmind - Beta 9.2 @@@ ROGUE MODE // 2019.11.25 @ 17:58:29 Player: Enzo Result: Destroyed by as-46980 with Assembled Heavy Rifle Performance ------------- Evolutions (0) 0 Regions Visited (4) 800 Robots Destroyed (24) 120 Value Destroyed (395) 395 Prototype IDs (5) 100 Alien Tech Used (0) 0 Bonus (300) 300 TOTAL SCORE: 1715 Bonus ------- Aligned with FarCom 300 Cogmind --------- Core Integrity 0/250 Matter 265/300 Energy 98/100 System Corruption 0% Temperature Cool (0) Movement Rolling (90) Location -9/Mines Parts ------- > --- POWER (1) -------- (None) > --- PROPULSION (2) --- Armored Wheel Armored Wheel > --- UTILITY (2) ------ Small Storage Unit Modified TNC > --- WEAPON (2) ------- (None) > --- INVENTORY (6) ---- Armored Wheel Armored Wheel Structural Scanner Terrain Scanner Seismic Analyzer Peak State ------------ > --- POWER ------------ Light Nuclear Core > --- PROPULSION ------- Armored Wheel Armored Wheel > --- UTILITY ---------- Small Storage Unit Modified TNC > --- WEAPON ----------- Grenade Launcher Mining Laser > --- INVENTORY -------- Armored Wheel Armored Wheel Structural Scanner Terrain Scanner Seismic Analyzer [Rating: 16] Favorites ----------- Power Light Nuclear Core Engine Ion Engine Power Core Light Nuclear Core Propulsion Armored Wheel Wheel Armored Wheel Utility Small Storage Unit Device Structural Scanner Storage Small Storage Unit Processor Modified TNC Weapon Particle Cannon Energy Gun EM Pulse Gun Energy Cannon Particle Cannon Ballistic Gun Assault Rifle Launcher Grenade Launcher Special Weapon Mining Laser Build | -11 -10 -10 -10 -9 ------- Run | Scr Mat Min Exi Min Slots Evolved . | . . . . . Power . | . . . . . Propulsion . | . . . . . Utility . | . . . . . Weapon . | . . . . . Parts Attached 20 | 6 8 2 3 1 Power 3 | 1 1 1 . . Engine 1 | 1 . . . . Core 2 | . 1 1 . . Reactor . | . . . . . Propulsion 5 | 2 3 . . . Treads . | . . . . . Leg . | . . . . . Wheel 5 | 2 3 . . . Hover . | . . . . . Flight . | . . . . . Utility 5 | 1 1 . 3 . Device 2 | . 1 . 1 . Storage 1 | 1 . . . . Processor 2 | . . . 2 . Hackware . | . . . . . Protection . | . . . . . Artifact . | . . . . . Weapon 7 | 2 3 1 . 1 Energy Gun 2 | 1 1 . . . Energy Cannon 2 | . 2 . . . Ballistic Gun 1 | 1 . . . . Ballistic Cannon . | . . . . . Launcher 1 | . . . . 1 Special Weapon 1 | . . 1 . . Impact Weapon . | . . . . . Slashing Weapon . | . . . . . Piercing Weapon . | . . . . . Special Melee Weapon . | . . . . . Unidentified Prototypes 3 | . . . 3 . Parts Lost 7 | . 2 2 . 3 Power 1 | . . . . 1 Propulsion 1 | . 1 . . . Utility . | . . . . . Weapon 5 | . 1 2 . 2 Highest Loss Streak 3 | . 1 2 . 3 Average Slot Usage (%) 92 | . 96 89 84 90 Engine 1 | . 3 . . . Core 11 | . 10 14 14 13 Wheel 27 | . 27 28 28 28 Device 9 | . 12 14 6 . Storage 14 | . 14 14 14 14 Processor 3 | . . . 7 14 Energy Gun 2 | . 4 . . . Energy Cannon 10 | . 17 11 . . Ballistic Gun 2 | . 4 . . . Launcher 1 | . . . . 8 Special Weapon 5 | . . 7 14 11 Naked Turns . | . . . . . Heaviest Build 18 | 13 18 18 11 13 Greatest Support 32 | 26 32 24 24 24 Greatest Overweight (x) 1 | 1 1 . . . Average Overweight (x) . | . . . . . Largest Inventory Capacity 6 | 6 6 6 6 6 Average Capacity 5 | 5 6 6 6 6 Most Carried 6 | 2 5 6 5 5 Average Carried 3 | 1 3 4 4 5 Final Capacity 6 | 6 6 6 6 6 Final Carried 5 | 2 5 4 5 5 Class Distribution -------------------- 100% | Mutant Dominant Class ---------------- Mutant | -10/Materials Mutant | -10/Mines Mutant | -10/Exiles Mutant | -9/Mines Resources | -11 -10 -10 -10 -9 ----------- Run | Scr Mat Min Exi Min Matter Collected 466 | 296 114 20 . 36 Remotely . | . . . . . Salvage Created 680 | 214 358 91 . 17 Parts 40 | 14 24 2 . . Haulers Intercepted 1 | . 1 . . . Recyclers Shooed 2 | 1 1 . . . Parts Field Recycled . | . . . . . Retrieved Matter . | . . . . . Parts Self-Destructed . | . . . . . Prevented . | . . . . . Kills | -11 -10 -10 -10 -9 ------- Run | Scr Mat Min Exi Min Combat Hostiles Destroyed 15 | . 6 4 . 5 Melee 1 | . . . . 1 Guns 2 | . 2 . . . Cannons 8 | . 4 4 . . AOE 4 | . . . . 4 Classes Destroyed 7 | 2 4 1 . . Builder 1 | . 1 . . . Tunneler 5 | 5 . . . . Hauler 1 | . 1 . . . Recycler 1 | 1 . . . . Operator 1 | . 1 . . . Grunt 8 | . 6 2 . . Assembled 7 | . . 2 . 5 Best Kill Streak 5 | 5 3 2 . 4 Combat Bots Only 4 | . 2 2 . 4 Max Kills in Single Turn 2 | 1 1 1 . 2 Gunslinging . | . . . . . Exploded 2 | . . . . 2 Melee 1 | . . . . 1 Uniques/NPCs Destroyed . | . . . . . Combat | -11 -10 -10 -10 -9 -------- Run | Scr Mat Min Exi Min Damage Taken 825 | . 327 333 . 165 Core 265 | . 88 116 . 61 Absorbed by Shields . | . . . . . Core Remaining (%) 100 | 100 . . . . Volleys Fired 63 | 12 28 16 . 7 Largest 2 | 2 2 2 . 1 Hottest 136 | 60 136 136 . 100 Shots Fired 104 | 24 53 20 . 7 Gun 47 | 24 23 . . . Cannon 44 | . 30 14 . . Launcher 5 | . . . . 5 Special 8 | . . 6 . 2 Kinetic 25 | 12 13 . . . Thermal 53 | . 31 20 . 2 Explosive 5 | . . . . 5 Electromagnetic 21 | 12 9 . . . Robot Hit Streak 12 | 5 12 5 . 4 Robot Miss Streak 6 | 2 6 5 . 4 Penetration Max . | . . . . . Secondary Targets . | . . . . . Shots Hit Robots 58 | 15 29 11 . 3 Core Hits 32 | 7 13 5 . 7 Critical Hits 1 | . 1 . . . Critical Kills . | . . . . . Critical Parts Destroyed 1 | . 1 . . . Melee Attacks . | . . . . . Impact . | . . . . . Slashing . | . . . . . Piercing . | . . . . . Sneak Attacks . | . . . . . Combat Hostiles . | . . . . . Follow-up Attacks . | . . . . . Damage Inflicted 1319 | 226 489 239 . 365 Guns 363 | 202 161 . . . Cannons 495 | . 328 167 . . Explosions 360 | 24 . . . 336 Melee . | . . . . . Ramming 5 | . . . . 5 Kinetic 146 | 56 90 . . . Thermal 632 | 24 345 239 . 24 Explosive 336 | . . . . 336 Electromagnetic 200 | 146 54 . . . Impact . | . . . . . Slashing . | . . . . . Piercing . | . . . . . Highest Corruption . | . . . . . Average Corruption . | . . . . . Corruption Purged . | . . . . . Overload Shots . | . . . . . Overflow Damage 31 | . 11 5 . 15 Projectiles 16 | . 11 5 . . Explosions 15 | . . . . 15 Melee . | . . . . . Knockbacks . | . . . . . Impact . | . . . . . Kinetic . | . . . . . Secondary . | . . . . . Self-Inflicted Damage 12 | . . . . 12 Shots 1 | . . . . 1 Rammed 1 | . . . . 1 Targets Rammed 1 | . . . . 1 Kicked . | . . . . . Crushed . | . . . . . Highest Temperature 279 | . 279 224 . 28 Average Temperature 92 | . 88 108 . 16 Received Heat Transfer 219 | . 189 30 . . Effects 2 | . 2 . . . Interference 2 | . 2 . . . Siege Activations . | . . . . . Robots Corrupted . | . . . . . Combat Hostiles . | . . . . . Parts Fried 1 | 1 . . . . Impact Corruptions . | . . . . . Robots Melted . | . . . . . Combat Hostiles . | . . . . . Parts Melted . | . . . . . Heat Transferred 1175 | 50 629 446 . 50 Parts Sabotaged . | . . . . . Parts Stolen . | . . . . . Parts Stripped . | . . . . . Power Chain Reactions 1 | 1 . . . . Missiles Intercepted . | . . . . . Alert | -11 -10 -10 -10 -9 ------- Run | Scr Mat Min Exi Min Peak Influence 234 | 30 234 74 . . Average Influence 68 | 14 103 60 . . Maximum Alert Level 1 | . 1 . . . Low Security (%) 92 | 100 86 100 . 100 Level 1 7 | . 13 . . . Level 2 . | . . . . . Level 3 . | . . . . . Level 4 . | . . . . . Level 5 . | . . . . . High Security . | . . . . . Max Security . | . . . . . Squads Dispatched 1 | . 1 . . . Investigation . | . . . . . Extermination . | . . . . . Reinforcement 1 | . 1 . . . Assault . | . . . . . Garrison . | . . . . . Intercept . | . . . . . Construction Impeded . | . . . . . Haulers Reinforced . | . . . . . Stealth | -11 -10 -10 -10 -9 --------- Run | Scr Mat Min Exi Min Distress Signals 4 | . 4 . . . Communications Jammed . | . . . . . Distress Signals . | . . . . . Times Spotted 29 | . 15 3 . 11 Peak Tracking Total 7 | . 4 2 . 7 Tactical Retreats 3 | . 2 . . 1 Traps | -11 -10 -10 -10 -9 ------- Run | Scr Mat Min Exi Min Traps Triggered . | . . . . . Indirectly . | . . . . . Trap Hack Attempts . | . . . . . Triggered . | . . . . . Disarmed . | . . . . . Reprogrammed 4 | . 4 . . . Reused . | . . . . . Traps Extracted . | . . . . . Installed . | . . . . . Triggered . | . . . . . Machines | -11 -10 -10 -10 -9 ---------- Run | Scr Mat Min Exi Min Machines Disabled 2 | . 2 . . . Max in Single Turn 1 | . 1 . . . Machines Sabotaged . | . . . . . Garrisons Compromised . | . . . . . Overloaded Fab Kills . | . . . . . Fab Network Shutdowns . | . . . . . Hacking | -11 -10 -10 -10 -9 --------- Run | Scr Mat Min Exi Min Machines Accessed 5 | . 5 . . . Terminals 5 | . 5 . . . Fabricators . | . . . . . Repair Stations . | . . . . . Recycling Units . | . . . . . Scanalyzers . | . . . . . Garrison Access . | . . . . . Total Hacks 21 | . 21 . . . Successful 15 | . 15 . . . Failed 6 | . 6 . . . Catastrophic 1 | . 1 . . . Database Lockouts . | . . . . . Manual 17 | . 16 . 1 . Terminals 21 | . 21 . . . Fabricators . | . . . . . Repair Stations . | . . . . . Recycling Units . | . . . . . Scanalyzers . | . . . . . Garrison Access . | . . . . . Terminal Hacks 7 | . 7 . . . Robot Analysis 1 | . 1 . . . Prototype ID Bank 1 | . 1 . . . Branch Access Points 1 | . 1 . . . Terminal Index 1 | . 1 . . . Alert Level 1 | . 1 . . . Locate Traps 1 | . 1 . . . Reprogram Traps 1 | . 1 . . . Fabricator Hacks . | . . . . . Repair Station Hacks . | . . . . . Recycling Unit Hacks . | . . . . . Scanalyzer . | . . . . . Garrison Access Hacks . | . . . . . Unauthorized Hacks 20 | . 20 . . . Terminals 8 | . 8 . . . Track 3 | . 3 . . . Botnet 4 | . 4 . . . Operators 1 | . 1 . . . Fabricators . | . . . . . Repair Stations . | . . . . . Recycling Units . | . . . . . Scanalyzers . | . . . . . Garrison Access . | . . . . . Data Cores Recovered 1 | . 1 . . . Used . | . . . . . Hacking Detections 5 | . 5 . . . Full Trace Events . | . . . . . Feedback Events . | . . . . . Feedback Blocked . | . . . . . Robot Schematics Acquired . | . . . . . Robots Built . | . . . . . Matter . | . . . . . Time . | . . . . . Total Robot Build Rating . | . . . . . Part Schematics Acquired . | . . . . . Parts Built . | . . . . . Matter . | . . . . . Time . | . . . . . Total Part Build Rating . | . . . . . Parts Repaired . | . . . . . Time . | . . . . . Parts Recycled . | . . . . . Recycled Matter . | . . . . . Retrieved Matter . | . . . . . Retrieved Components . | . . . . . Parts Scanalyzed . | . . . . . Part Schematics Acquired . | . . . . . Parts Damaged . | . . . . . Bothacking | -11 -10 -10 -10 -9 ------------ Run | Scr Mat Min Exi Min Used RIF Installer . | . . . . . Robots Hacked . | . . . . . Non-combat . | . . . . . Combat . | . . . . . Robot Hacks Applied . | . . . . . Relay Couplers Released . | . . . . . Robots Rewired . | . . . . . Allies Hacked . | . . . . . Hacks Repelled . | . . . . . Allies | -11 -10 -10 -10 -9 -------- Run | Scr Mat Min Exi Min Total Allies . | . . . . . Largest Group . | . . . . . Highest-Rated Group . | . . . . . Highest-Rated Ally . | . . . . . Total Orders . | . . . . . Ally Attacks . | . . . . . Total Damage . | . . . . . Kills . | . . . . . Allies Corrupted . | . . . . . Allies Melted . | . . . . . Intel | -11 -10 -10 -10 -9 ------- Run | Scr Mat Min Exi Min Robot Analysis Total 1 | . 1 . . . Derelict Logs Recovered 1 | . . 1 . . Drone Launches . | . . . . . Drone Recoveries . | . . . . . Exploration | -11 -10 -10 -10 -9 ------------- Run | Scr Mat Min Exi Min Turns Passed 1265 | 175 582 136 225 147 Spaces Moved 1065 | 134 472 85 244 130 Core 5 | 5 . . . . Treads . | . . . . . Legs . | . . . . . Wheels 1060 | 129 472 85 244 130 Hover . | . . . . . Flight . | . . . . . Fastest Speed 50 | 50 90 90 90 90 Average Speed 90 | 88 91 90 90 90 Slowest Speed 110 | 100 110 90 90 90 Overloaded Moves . | . . . . . Propulsion Burnouts . | . . . . . Robots Hopped . | . . . . . Cave-ins Triggered . | . . . . . Exploration Rate (%) 38 | 5 82 17 61 29 Regions Visited 4 Branch Regions 3 Pre-discovered Areas 1 | . . 1 . . Known Exits Taken 1 | . 1 . . . Unknown Exits Taken 3 | 1 . 1 1 . Scrap Searched . | . . . . . Spaces Dug . | . . . . . Terrain Destroyed 23 | 5 . . . 18 Melee . | . . . . . Projectile 1 | . . . . 1 AOE 22 | 5 . . . 17 Actions | -11 -10 -10 -10 -9 --------- Run | Scr Mat Min Exi Min Total 1241 | 162 569 112 249 149 Wait 81 | 9 53 9 . 10 Move 1061 | 133 471 84 243 130 Hop . | . . . . . Pick Up 5 | 2 3 . . . Fast Attach 18 | 6 8 . 3 1 Attach 1 | . . 1 . . Detach 3 | . 1 . 2 . Swap 1 | . . 1 . . Drop 7 | . 5 1 1 . Fire 63 | 12 28 16 . 7 Melee . | . . . . . Ram 1 | . . . . 1 Kick . | . . . . . Crush . | . . . . . Escape Stasis . | . . . . . Rewire . | . . . . . Trap . | . . . . . Miscellaneous . | . . . . . Route ------- -11/Scrapyard -10/Materials (discovered 4 exits: [*Mat x3] / *Min) -10/Mines -10/Exiles -9/Mines History --------- Turn | Location | Event 31 | -11/Scrapyard | Discovered new exit (range 16) 176 | -11/Scrapyard | Entered Materials 271 | -10/Materials | Discovered new exit (range 16) 318 | -10/Materials | Build established: Mutant 450 | -10/Materials | Identified exit to Mines 590 | -10/Materials | Discovered new exit (range 8) 676 | -10/Materials | Discovered new exit (range 10) 758 | -10/Materials | Entered Mines 772 | -10/Mines | Met a Derelict bent on vengeance 784 | -10/Mines | Learned location of Zion (-6) 800 | -10/Mines | Excavation squad dispatched 800 | -10/Mines | A large section of the Mines collapsed 811 | -10/Mines | Core integrity fell below 50% 836 | -10/Mines | Core integrity fell below 20% 890 | -10/Mines | Deemed a non-threat by the Exiles lab entrance 891 | -10/Mines | Discovered new exit (range 5) 894 | -10/Mines | Entered Exiles 916 | -10/Exiles | Met 8R-AWN 931 | -10/Exiles | Met EX-HEX 957 | -10/Exiles | Met EX-BIN 969 | -10/Exiles | Aligned with FarCom system 970 | -10/Exiles | Given EX-Vault access code 991 | -10/Exiles | Opened EX-Vault 998 | -10/Exiles | Found Prototype Device 998 | -10/Exiles | Identified Skeleton Box 1003 | -10/Exiles | Found Prototype Processor 1003 | -10/Exiles | Identified 0b10 Alert Chip 1007 | -10/Exiles | Found Prototype Processor 1007 | -10/Exiles | Identified Modified TNC 1027 | -10/Exiles | Warned to stay clear of 0b10 Research branches 1054 | -10/Exiles | Met EX-DEC 1108 | -10/Exiles | Discovered new exit (range 15) 1119 | -10/Exiles | Left Exiles lab with Modified TNC 1119 | -10/Exiles | Entered Mines 1192 | -9/Mines | Assembled infested the area 1197 | -9/Mines | Assisted by a Guerilla fighting off Assembled 1266 | -9/Mines | Destroyed by as-46980 with Assembled Heavy Rifle Last Messages --------------- 01197_ A derelict emerges from the shadows: "You need to get out of here! I've been tracking a group of Assembled to figure out where they're coming from, and they're closing on this area, come on!" 01199_ ND-ZYI(h): "I'll hold them off! Go on ahead or try to find another way!" 01199_ as-42363 suffers critical hit. 01199_ as-42363 destroyed. 01223_ T-07 Excavator destroyed. 01229_ as-45491 destroyed. 01233_ as-33621 destroyed. 01234_ Mining Laser destroyed. 01235_ Destroyed Asb. Hover Unit. 01235_ as-40682 destroyed. 01235_ as-62621 destroyed. 01235_ Destroyed Asb. F-torch. 01238_ Grenade Launcher destroyed. 01255_ Lgt. Nuclear Core destroyed. 01262_ Slammed into as-06242. 01262_ as-06242 destroyed. 01263_ Acquired 6 matter. Map ----- +----------------------------------------------------+ | | | | | ?????????????????????????????????????????????????? | | ?????????????????????????????????????????????????? | | ?????????????????????????????????????????????????? | | ?????????????#####???????????????????????????????? | | ????????????## #???????????????????????????????? | | ????????????# #???????????????????????????????? | | ????????????# #???#####???????????????????????? | | ????????????# ##?## ##?????#????????????????? | | ????????????# ### #????? ????????????????? | | ????????????# #????? ????????????????? | | ????????????## ##????? ????????????????? | | ?????????????## ##?????? ????????????????? | | ??????????????##" #??????? ????????????????? | | ???????????????### #??????# #???????????????? | | ?????????????????## ##?????# #???????????????? | | ????????????????### ##????# #???????????????? | | ????????????????# ##???# #???????????????? | | ????????????????## ##### #???????????????? | | ???????????????## #???????????????? | | ???????????##### # # ##[#???????????????? | | ??????????## ## # ##%###############?? | | # ######## =% % # % % ?? | | # % * a * t ##????????? | | # %a a @ ##### #?????????? | | ########### ##???# ##????????? | | ??????????## # ##???## ##???????? | | ???????????## # ## #????# ###?????? | | ????????????## #?##??# ##???# ##????? | | ?????????????## #????# ##??## #????? | | ??????????????## #????# #???## %! #????? | | ???????????????# #????## ##???## ##????? | | ???????????????######?????## #????## ##????? | | ???????????????????????????### #?????# ! ##???? | | ?????????????????????????????## ##?????# ####? | | ??????????????????????????????###??????## ## | | ????????????????????????????????######### | | ????????????????????????????????# ## ## | | ????????????????????????????????# ####### #? #?### | | ???????????????????????????????## ####??# #? #???? | | ??????????????????????????????## #### #???? | | ??????????????????????????????# ##?????? | | ??????????????????????????????# #####??????? | | ??????????????????????????????## ##??????????? | | ???????????????????????????????#######???????????? | | ?????????????????????????????????????????????????? | | ?????????????????????????????????????????????????? | | ?????????????????????????????????????????????????? | | ?????????????????????????????????????????????????? | +----------------------------------------------------+ Best States ------------- Heat Dissipation 25 Energy Generation 14 Energy Capacity 250 Matter Stores 300 Matter Capacity 300 Sight Range 16 Terrain Scan Density 10 Evasion (%) 42 Item Schematics ----------------- None Robot Schematics ------------------ None Fabricated ------------ Nothing Alien Tech Used ----------------- None Achievements -------------- None Challenges ------------ None Game ------ Seed CoolingArmoredWell Manual? 0 Play Time 00:16:11 Cumulative 13.2 hours Start 2019.11.25 @ 17:43:20 End 2019.11.25 @ 17:58:29 Sessions 1 Manual Loads 0 Difficulty Rogue Special Mode None Game No. 36 Rogue 36 Adventurer 0 Explorer 0 Win Type - Total 0 Types 0/0/0/0/0/0/0 Lore% 35 Gallery% 30 Achievement% 26 Wizard Run 0 Options --------- ASCII 0 Keyboard 0 Movement Numpad Keybinds 0 Fullscreen 2 Font 24/Smallcaps Map View 76x50 Tactical HUD 1 Map Filters NONE Filters NONE Steam 1 RUN: 0de597c8-8e47-4ffc-b906-53140787cbac